[Event "Titled Tuesday Blitz April 18 Late 2023"]
[White "Eisa Mohmood, Alkhoori"]
[Black "Rodriguez Fontecha, Marcos"]
[WhiteFideId "9316116"]
[BlackFideId "2256576"]
[WhiteElo "1310"]
[BlackElo "2263"]
[Result "0-1"]
[Round "01"]
[TimeControl "180+2"]
[Date "2023.04.18"]
[WhiteClock "0:00:15"]
[BlackClock "0:00:03"]

1. e4 {[%clk 0:02:58]}  d5 {[%clk 0:02:49]} 2. exd5 {[%clk 0:02:54]}  Qxd5 {[%clk 0:02:50]} 3. d4 {[%clk 0:02:55]}  Nf6 {[%clk 0:02:15]} 4. Nf3 {[%clk 0:02:44]}  g6 {[%clk 0:02:12]} 5. Nc3 {[%clk 0:02:23]}  Qd6 {[%clk 0:02:05]} 6. Be2 {[%clk 0:02:22]}  Bg7 {[%clk 0:02:05]} 7. O-O {[%clk 0:02:11]}  O-O {[%clk 0:02:05]} 8. Be3 {[%clk 0:01:54]}  c6 {[%clk 0:02:03]} 9. Ne5 {[%clk 0:01:49]}  Nd5 {[%clk 0:02:00]} 10. Nxd5 {[%clk 0:01:46]}  cxd5 {[%clk 0:02:01]} 11. Nd3 {[%clk 0:01:44]}  Nc6 {[%clk 0:01:57]} 12. c3 {[%clk 0:01:43]}  e5 {[%clk 0:01:55]} 13. dxe5 {[%clk 0:01:43]}  Nxe5 {[%clk 0:01:56]} 14. Nxe5 {[%clk 0:01:43]}  Bxe5 {[%clk 0:01:56]} 15. g3 {[%clk 0:01:41]}  Bh3 {[%clk 0:01:55]} 16. Re1 {[%clk 0:01:40]}  a6 {[%clk 0:01:54]} 17. Bf3 {[%clk 0:01:32]}  Rad8 {[%clk 0:01:53]} 18. Bd4 {[%clk 0:01:31]}  f6 {[%clk 0:01:49]} 19. Qb3 {[%clk 0:01:19]}  Bxd4 {[%clk 0:01:40]} 20. cxd4 {[%clk 0:01:18]}  Bc8 {[%clk 0:01:35]} 21. Rac1 {[%clk 0:01:13]}  Kg7 {[%clk 0:01:33]} 22. Rc3 {[%clk 0:01:10]}  b5 {[%clk 0:01:30]} 23. Rec1 {[%clk 0:01:05]}  Bf5 {[%clk 0:01:30]} 24. Rc5 {[%clk 0:00:57]}  Be4 {[%clk 0:01:30]} 25. Bg2 {[%clk 0:00:43]}  Qe6 {[%clk 0:01:17]} 26. Rc6 {[%clk 0:00:39]}  Rd6 {[%clk 0:01:17]} 27. Rc7+ {[%clk 0:00:35]}  Rf7 {[%clk 0:01:13]} 28. Bxe4 {[%clk 0:00:31]}  dxe4 {[%clk 0:01:09]} 29. Qxe6 {[%clk 0:00:30]}  Rxe6 {[%clk 0:01:10]} 30. Rxf7+ {[%clk 0:00:30]}  Kxf7 {[%clk 0:01:10]} 31. Rc7+ {[%clk 0:00:29]}  Re7 {[%clk 0:01:10]} 32. Rc6 {[%clk 0:00:29]}  Rd7 {[%clk 0:01:06]} 33. Rxa6 {[%clk 0:00:29]}  Rxd4 {[%clk 0:01:05]} 34. Rb6 {[%clk 0:00:29]}  Rb4 {[%clk 0:01:05]} 35. b3 {[%clk 0:00:29]}  g5 {[%clk 0:01:03]} 36. Kf1 {[%clk 0:00:29]}  Kg6 {[%clk 0:00:59]} 37. Ke2 {[%clk 0:00:27]}  Kf5 {[%clk 0:00:49]} 38. Ke3 {[%clk 0:00:27]}  g4 {[%clk 0:00:48]} 39. Rc6 {[%clk 0:00:26]}  Ke5 {[%clk 0:00:40]} 40. Rc5+ {[%clk 0:00:25]}  Kd6 {[%clk 0:00:39]} 41. Rh5 {[%clk 0:00:26]}  Ke6 {[%clk 0:00:15]} 42. Rxh7 {[%clk 0:00:25]}  Kd5 {[%clk 0:00:13]} 43. h4 {[%clk 0:00:23]}  gxh3 {[%clk 0:00:12]} 44. Rxh3 {[%clk 0:00:23]}  f5 {[%clk 0:00:11]} 45. Rh5 {[%clk 0:00:22]}  Ke6 {[%clk 0:00:10]} 46. Rh6+ {[%clk 0:00:19]}  Kd5 {[%clk 0:00:10]} 47. Kf4 {[%clk 0:00:19]}  Rd4 {[%clk 0:00:08]} 48. Kxf5 {[%clk 0:00:20]}  Rd2 {[%clk 0:00:08]} 49. Rh2 {[%clk 0:00:17]}  e3 {[%clk 0:00:06]} 50. Kg4 {[%clk 0:00:15]}  e2 {[%clk 0:00:03]} 51. Rh1 {[%clk 0:00:15]}  Rd1 {[%clk 0:00:03]} 0-1


[Site "https://www.chess.com"]

[Event "Titled Tuesday Blitz April 18 Late 2023"]
[White "Nakamura, Hikaru"]
[Black "Martinez Ramirez, Lennis"]
[WhiteFideId "2016192"]
[BlackFideId "3509079"]
[WhiteElo "2885"]
[BlackElo "2410"]
[Result "1-0"]
[Round "02"]
[TimeControl "180+2"]
[Date "2023.04.18"]
[WhiteClock "0:00:55"]
[BlackClock "0:00:05"]

1. Nf3 {[%clk 0:03:00]}  d5 {[%clk 0:02:59]} 2. e3 {[%clk 0:03:01]}  Nf6 {[%clk 0:02:58]} 3. b3 {[%clk 0:02:58]}  g6 {[%clk 0:02:57]} 4. Bb2 {[%clk 0:02:58]}  Bg7 {[%clk 0:02:58]} 5. c4 {[%clk 0:02:59]}  O-O {[%clk 0:02:56]} 6. d4 {[%clk 0:02:59]}  Ne4 {[%clk 0:02:55]} 7. cxd5 {[%clk 0:02:55]}  Qxd5 {[%clk 0:02:54]} 8. Bc4 {[%clk 0:02:56]}  Qa5+ {[%clk 0:02:53]} 9. Nbd2 {[%clk 0:02:56]}  Nxd2 {[%clk 0:02:46]} 10. Qxd2 {[%clk 0:02:56]}  Qxd2+ {[%clk 0:02:45]} 11. Kxd2 {[%clk 0:02:56]}  c5 {[%clk 0:02:45]} 12. Rab1 {[%clk 0:02:49]}  cxd4 {[%clk 0:02:44]} 13. Nxd4 {[%clk 0:02:48]}  Bd7 {[%clk 0:02:43]} 14. Ke2 {[%clk 0:02:47]}  Nc6 {[%clk 0:02:42]} 15. Nf3 {[%clk 0:02:47]}  Bf5 {[%clk 0:01:55]} 16. Bxg7 {[%clk 0:02:47]}  Kxg7 {[%clk 0:01:56]} 17. Rbc1 {[%clk 0:02:45]}  Rac8 {[%clk 0:01:55]} 18. a3 {[%clk 0:02:20]}  Rfd8 {[%clk 0:01:29]} 19. Rhd1 {[%clk 0:02:14]}  Rxd1 {[%clk 0:01:27]} 20. Kxd1 {[%clk 0:02:13]}  Na5 {[%clk 0:01:17]} 21. Nd2 {[%clk 0:02:13]}  Nxc4 {[%clk 0:01:16]} 22. Rxc4 {[%clk 0:02:11]}  Kf6 {[%clk 0:01:05]} 23. Ne4+ {[%clk 0:01:57]}  Kg7 {[%clk 0:00:52]} 24. Rxc8 {[%clk 0:01:57]}  Bxc8 {[%clk 0:00:51]} 25. Kd2 {[%clk 0:01:57]}  f5 {[%clk 0:00:48]} 26. Nc5 {[%clk 0:01:51]}  Kf6 {[%clk 0:00:40]} 27. f4 {[%clk 0:01:52]}  e5 {[%clk 0:00:40]} 28. Nd3 {[%clk 0:01:52]}  exf4 {[%clk 0:00:40]} 29. exf4 {[%clk 0:01:53]}  h6 {[%clk 0:00:29]} 30. Ke3 {[%clk 0:01:52]}  g5 {[%clk 0:00:30]} 31. g3 {[%clk 0:01:49]}  Ke6 {[%clk 0:00:29]} 32. Kd4 {[%clk 0:01:48]}  Kd6 {[%clk 0:00:28]} 33. b4 {[%clk 0:01:42]}  b6 {[%clk 0:00:28]} 34. Ne5 {[%clk 0:01:29]}  Be6 {[%clk 0:00:28]} 35. fxg5 {[%clk 0:01:26]}  hxg5 {[%clk 0:00:27]} 36. Nf3 {[%clk 0:01:26]}  g4 {[%clk 0:00:26]} 37. Nh4 {[%clk 0:01:26]}  Bd7 {[%clk 0:00:25]} 38. Ng6 {[%clk 0:01:24]}  a5 {[%clk 0:00:21]} 39. Nf4 {[%clk 0:01:19]}  Bc8 {[%clk 0:00:20]} 40. Nd5 {[%clk 0:01:18]}  axb4 {[%clk 0:00:20]} 41. axb4 {[%clk 0:01:18]}  b5 {[%clk 0:00:17]} 42. Ne3 {[%clk 0:01:18]}  Bd7 {[%clk 0:00:16]} 43. Nd1 {[%clk 0:01:18]}  Bc8 {[%clk 0:00:16]} 44. Nf2 {[%clk 0:01:18]}  Bd7 {[%clk 0:00:16]} 45. Nd3 {[%clk 0:01:19]}  Bc8 {[%clk 0:00:16]} 46. Nc5 {[%clk 0:01:20]}  Be6 {[%clk 0:00:03]} 47. Nxe6 {[%clk 0:01:11]}  Kxe6 {[%clk 0:00:04]} 48. Kc5 {[%clk 0:01:12]}  f4 {[%clk 0:00:04]} 49. gxf4 {[%clk 0:01:12]}  Kf5 {[%clk 0:00:04]} 50. Kxb5 {[%clk 0:01:13]}  Kxf4 {[%clk 0:00:04]} 51. Kc4 {[%clk 0:01:11]}  Kf3 {[%clk 0:00:05]} 52. b5 {[%clk 0:01:12]}  Kg2 {[%clk 0:00:05]} 53. b6 {[%clk 0:01:12]}  Kxh2 {[%clk 0:00:06]} 54. b7 {[%clk 0:01:13]}  g3 {[%clk 0:00:06]} 55. b8=Q {[%clk 0:01:14]}  Kg2 {[%clk 0:00:06]} 56. Kd3 {[%clk 0:01:14]}  Kf2 {[%clk 0:00:06]} 57. Qf4+ {[%clk 0:01:08]}  Kg2 {[%clk 0:00:06]} 58. Ke2 {[%clk 0:01:08]}  Kh1 {[%clk 0:00:07]} 59. Kf3 {[%clk 0:00:59]}  g2 {[%clk 0:00:05]} 60. Qh4+ {[%clk 0:00:55]} 1-0


[Site "https://www.chess.com"]

[Event "Titled Tuesday Blitz April 18 Late 2023"]
[White "Caruana, Fabiano"]
[Black "Tregubov, Pavel V."]
[WhiteFideId "2020009"]
[BlackFideId "4115341"]
[WhiteElo "2837"]
[BlackElo "2425"]
[Result "1-0"]
[Round "02"]
[TimeControl "180+2"]
[Date "2023.04.18"]
[WhiteClock "0:00:31"]
[BlackClock "0:00:06"]

1. d4 {[%clk 0:03:00]}  Nf6 {[%clk 0:02:59]} 2. Nf3 {[%clk 0:02:55]}  e6 {[%clk 0:02:58]} 3. g3 {[%clk 0:02:55]}  c5 {[%clk 0:02:57]} 4. Bg2 {[%clk 0:02:55]}  cxd4 {[%clk 0:02:54]} 5. Nxd4 {[%clk 0:02:56]}  d5 {[%clk 0:02:54]} 6. O-O {[%clk 0:02:55]}  e5 {[%clk 0:02:52]} 7. Nb3 {[%clk 0:02:55]}  Nc6 {[%clk 0:02:36]} 8. Bg5 {[%clk 0:02:54]}  Be6 {[%clk 0:02:34]} 9. Bxf6 {[%clk 0:02:53]}  gxf6 {[%clk 0:02:34]} 10. e3 {[%clk 0:02:53]}  h5 {[%clk 0:02:33]} 11. Nc3 {[%clk 0:02:52]}  Ne7 {[%clk 0:02:22]} 12. Nc5 {[%clk 0:02:49]}  Qb6 {[%clk 0:02:17]} 13. Nxe6 {[%clk 0:02:46]}  fxe6 {[%clk 0:02:17]} 14. a4 {[%clk 0:02:37]}  h4 {[%clk 0:02:13]} 15. a5 {[%clk 0:02:34]}  Qc5 {[%clk 0:02:03]} 16. Qe2 {[%clk 0:02:26]}  Kf7 {[%clk 0:01:57]} 17. a6 {[%clk 0:02:20]}  b6 {[%clk 0:01:57]} 18. Nb5 {[%clk 0:02:18]}  Nc6 {[%clk 0:01:48]} 19. c3 {[%clk 0:02:14]}  e4 {[%clk 0:01:44]} 20. b4 {[%clk 0:02:12]}  Qe7 {[%clk 0:01:44]} 21. c4 {[%clk 0:01:50]}  Ne5 {[%clk 0:01:35]} 22. cxd5 {[%clk 0:01:50]}  exd5 {[%clk 0:01:36]} 23. Rac1 {[%clk 0:01:49]}  Qxb4 {[%clk 0:01:24]} 24. Rc7+ {[%clk 0:01:41]}  Be7 {[%clk 0:01:25]} 25. Nxa7 {[%clk 0:01:33]}  Qa4 {[%clk 0:00:59]} 26. Rd1 {[%clk 0:01:17]}  h3 {[%clk 0:00:56]} 27. Bf1 {[%clk 0:01:14]}  Ke6 {[%clk 0:00:26]} 28. Nb5 {[%clk 0:01:09]}  Rxa6 {[%clk 0:00:20]} 29. Rxd5 {[%clk 0:01:06]}  Qa1 {[%clk 0:00:09]} 30. Nd4+ {[%clk 0:00:55]}  Kf7 {[%clk 0:00:09]} 31. Rxe5 {[%clk 0:00:49]}  fxe5 {[%clk 0:00:08]} 32. Nf5 {[%clk 0:00:50]}  Ke6 {[%clk 0:00:07]} 33. Rxe7+ {[%clk 0:00:34]}  Kxf5 {[%clk 0:00:07]} 34. Qc4 {[%clk 0:00:32]}  Rf8 {[%clk 0:00:06]} 35. Qe6+ {[%clk 0:00:31]} 1-0


[Site "https://www.chess.com"]

[Event "Titled Tuesday Blitz April 18 Late 2023"]
[White "Aldokhin, Ivan"]
[Black "Vachier-Lagrave, Maxime"]
[WhiteFideId "24115720"]
[BlackFideId "623539"]
[WhiteElo "2322"]
[BlackElo "2740"]
[Result "0-1"]
[Round "02"]
[TimeControl "180+2"]
[Date "2023.04.18"]
[WhiteClock "0:00:01"]
[BlackClock "0:01:35"]

1. e4 {[%clk 0:03:00]}  c5 {[%clk 0:02:59]} 2. Nf3 {[%clk 0:03:01]}  Nc6 {[%clk 0:02:56]} 3. d4 {[%clk 0:03:02]}  cxd4 {[%clk 0:02:55]} 4. Nxd4 {[%clk 0:03:03]}  Nf6 {[%clk 0:02:55]} 5. Nc3 {[%clk 0:03:03]}  e6 {[%clk 0:02:56]} 6. Nxc6 {[%clk 0:03:02]}  bxc6 {[%clk 0:02:57]} 7. Bd3 {[%clk 0:03:02]}  d5 {[%clk 0:02:56]} 8. Qe2 {[%clk 0:03:03]}  Be7 {[%clk 0:02:55]} 9. Bf4 {[%clk 0:03:03]}  O-O {[%clk 0:02:50]} 10. O-O {[%clk 0:03:04]}  Bb7 {[%clk 0:02:48]} 11. Rad1 {[%clk 0:03:04]}  Qa5 {[%clk 0:02:46]} 12. Rfe1 {[%clk 0:03:01]}  Rfd8 {[%clk 0:02:43]} 13. a3 {[%clk 0:01:50]}  d4 {[%clk 0:02:36]} 14. Nb1 {[%clk 0:01:46]}  e5 {[%clk 0:02:36]} 15. Bg3 {[%clk 0:01:40]}  Qc7 {[%clk 0:02:28]} 16. Nd2 {[%clk 0:01:34]}  c5 {[%clk 0:02:29]} 17. Nc4 {[%clk 0:01:33]}  Nd7 {[%clk 0:02:29]} 18. Rf1 {[%clk 0:01:32]}  Bg5 {[%clk 0:02:25]} 19. Qh5 {[%clk 0:01:31]}  h6 {[%clk 0:02:18]} 20. h4 {[%clk 0:01:29]}  Nf6 {[%clk 0:02:19]} 21. Bxe5 {[%clk 0:00:54]}  Qxe5 {[%clk 0:02:19]} 22. Qxf7+ {[%clk 0:00:54]}  Kxf7 {[%clk 0:02:20]} 23. Nxe5+ {[%clk 0:00:54]}  Ke6 {[%clk 0:02:18]} 24. hxg5 {[%clk 0:00:55]}  hxg5 {[%clk 0:02:19]} 25. Nf3 {[%clk 0:00:45]}  g4 {[%clk 0:02:19]} 26. Ng5+ {[%clk 0:00:38]}  Ke7 {[%clk 0:02:19]} 27. e5 {[%clk 0:00:31]}  Nh5 {[%clk 0:02:15]} 28. Be4 {[%clk 0:00:25]}  Bxe4 {[%clk 0:02:10]} 29. Nxe4 {[%clk 0:00:26]}  Nf4 {[%clk 0:02:10]} 30. Rfe1 {[%clk 0:00:22]}  Ne6 {[%clk 0:02:09]} 31. Nd6 {[%clk 0:00:19]}  Rab8 {[%clk 0:02:05]} 32. Nc4 {[%clk 0:00:19]}  Ng5 {[%clk 0:02:00]} 33. Rd3 {[%clk 0:00:17]}  Rh8 {[%clk 0:01:57]} 34. Rg3 {[%clk 0:00:18]}  Rh4 {[%clk 0:01:58]} 35. f3 {[%clk 0:00:18]}  Ke6 {[%clk 0:01:55]} 36. Rxg4 {[%clk 0:00:17]}  Rxg4 {[%clk 0:01:55]} 37. fxg4 {[%clk 0:00:18]}  Rh8 {[%clk 0:01:53]} 38. Kf2 {[%clk 0:00:18]}  Nf7 {[%clk 0:01:49]} 39. Kg3 {[%clk 0:00:17]}  Rd8 {[%clk 0:01:47]} 40. Rf1 {[%clk 0:00:15]}  d3 {[%clk 0:01:45]} 41. cxd3 {[%clk 0:00:14]}  Rxd3+ {[%clk 0:01:46]} 42. Rf3 {[%clk 0:00:14]}  Rd4 {[%clk 0:01:46]} 43. Rf4 {[%clk 0:00:15]}  Rd1 {[%clk 0:01:43]} 44. Rf2 {[%clk 0:00:09]}  Ng5 {[%clk 0:01:43]} 45. Re2 {[%clk 0:00:08]}  Rd4 {[%clk 0:01:42]} 46. Nd6 {[%clk 0:00:07]}  Kd5 {[%clk 0:01:38]} 47. Nf5 {[%clk 0:00:06]}  Rd3+ {[%clk 0:01:38]} 48. Kh4 {[%clk 0:00:03]}  Ne6 {[%clk 0:01:39]} 49. Ne7+ {[%clk 0:00:03]}  Kd4 {[%clk 0:01:34]} 50. Nf5+ {[%clk 0:00:02]}  Kd5 {[%clk 0:01:34]} 51. Ne7+ {[%clk 0:00:01]}  Kc4 {[%clk 0:01:35]} 0-1


[Site "https://www.chess.com"]

[Event "Titled Tuesday Blitz April 18 Late 2023"]
[White "Martinez Alcantara, Jose Eduardo"]
[Black "Wieczorek, Oskar"]
[WhiteFideId "3805662"]
[BlackFideId "1133950"]
[WhiteElo "2711"]
[BlackElo "2418"]
[Result "1-0"]
[Round "02"]
[TimeControl "180+2"]
[Date "2023.04.18"]
[WhiteClock "0:00:23"]
[BlackClock "0:01:32"]

1. e4 {[%clk 0:02:59]}  c5 {[%clk 0:02:59]} 2. Nf3 {[%clk 0:02:59]}  e6 {[%clk 0:03:00]} 3. c3 {[%clk 0:02:59]}  d5 {[%clk 0:03:00]} 4. exd5 {[%clk 0:03:00]}  exd5 {[%clk 0:03:01]} 5. d4 {[%clk 0:03:01]}  Nf6 {[%clk 0:03:01]} 6. h3 {[%clk 0:02:59]}  Be7 {[%clk 0:03:01]} 7. Bd3 {[%clk 0:03:00]}  Nc6 {[%clk 0:03:00]} 8. O-O {[%clk 0:03:00]}  O-O {[%clk 0:03:00]} 9. Be3 {[%clk 0:03:00]}  c4 {[%clk 0:02:59]} 10. Bc2 {[%clk 0:03:00]}  b5 {[%clk 0:02:55]} 11. Ne5 {[%clk 0:02:50]}  Bb7 {[%clk 0:02:42]} 12. Nd2 {[%clk 0:02:48]}  b4 {[%clk 0:02:39]} 13. Ndf3 {[%clk 0:02:33]}  bxc3 {[%clk 0:02:32]} 14. bxc3 {[%clk 0:02:34]}  Ne4 {[%clk 0:02:32]} 15. Nxc6 {[%clk 0:02:25]}  Bxc6 {[%clk 0:02:30]} 16. Ne5 {[%clk 0:02:22]}  Bb7 {[%clk 0:02:17]} 17. Rb1 {[%clk 0:01:46]}  Rb8 {[%clk 0:01:56]} 18. Bxe4 {[%clk 0:01:18]}  dxe4 {[%clk 0:01:57]} 19. Qa4 {[%clk 0:01:11]}  Qc8 {[%clk 0:01:45]} 20. Nxc4 {[%clk 0:00:42]}  Bd5 {[%clk 0:01:45]} 21. Rxb8 {[%clk 0:00:37]}  Qxb8 {[%clk 0:01:46]} 22. Nd2 {[%clk 0:00:36]}  Bd6 {[%clk 0:01:45]} 23. c4 {[%clk 0:00:36]}  Bb7 {[%clk 0:01:42]} 24. c5 {[%clk 0:00:34]}  Bf4 {[%clk 0:01:41]} 25. c6 {[%clk 0:00:34]}  Bc8 {[%clk 0:01:32]} 26. Nxe4 {[%clk 0:00:24]}  Re8 {[%clk 0:01:32]} 27. c7 {[%clk 0:00:23]} 1-0


[Site "https://www.chess.com"]

[Event "Titled Tuesday Blitz April 18 Late 2023"]
[White "Andreikin, Dmitry"]
[Black "Sochacki, Christophe"]
[WhiteFideId "4158814"]
[BlackFideId "662569"]
[WhiteElo "2736"]
[BlackElo "2501"]
[Result "1/2-1/2"]
[Round "02"]
[TimeControl "180+2"]
[Date "2023.04.18"]
[WhiteClock "0:00:40"]
[BlackClock "0:00:05"]

1. d4 {[%clk 0:03:00]}  Nf6 {[%clk 0:02:57]} 2. c4 {[%clk 0:03:01]}  c5 {[%clk 0:02:57]} 3. d5 {[%clk 0:03:00]}  b5 {[%clk 0:02:58]} 4. Nc3 {[%clk 0:02:57]}  b4 {[%clk 0:02:55]} 5. Na4 {[%clk 0:02:57]}  d6 {[%clk 0:02:51]} 6. Nf3 {[%clk 0:02:54]}  g6 {[%clk 0:02:50]} 7. b3 {[%clk 0:02:45]}  Bg7 {[%clk 0:02:51]} 8. Bb2 {[%clk 0:02:45]}  O-O {[%clk 0:02:47]} 9. e3 {[%clk 0:02:44]}  Bd7 {[%clk 0:02:39]} 10. Bd3 {[%clk 0:02:43]}  Bxa4 {[%clk 0:02:38]} 11. bxa4 {[%clk 0:02:44]}  Nbd7 {[%clk 0:02:39]} 12. h4 {[%clk 0:02:42]}  h5 {[%clk 0:01:55]} 13. Ng5 {[%clk 0:02:39]}  Qa5 {[%clk 0:01:54]} 14. Qb3 {[%clk 0:02:37]}  Nb6 {[%clk 0:01:48]} 15. Bc2 {[%clk 0:02:36]}  Qa6 {[%clk 0:01:46]} 16. a5 {[%clk 0:02:29]}  Qxa5 {[%clk 0:01:38]} 17. Qd3 {[%clk 0:02:19]}  Qa6 {[%clk 0:01:31]} 18. Bb3 {[%clk 0:02:18]}  Nbxd5 {[%clk 0:01:26]} 19. g4 {[%clk 0:02:13]}  Nc3 {[%clk 0:01:13]} 20. gxh5 {[%clk 0:02:08]}  Nxh5 {[%clk 0:01:13]} 21. Rg1 {[%clk 0:02:08]}  Qc8 {[%clk 0:01:06]} 22. Bc2 {[%clk 0:02:06]}  Qf5 {[%clk 0:00:52]} 23. Qxf5 {[%clk 0:02:00]}  gxf5 {[%clk 0:00:53]} 24. Bxf5 {[%clk 0:02:00]}  e6 {[%clk 0:00:48]} 25. Bd3 {[%clk 0:01:51]}  d5 {[%clk 0:00:36]} 26. Kd2 {[%clk 0:01:38]}  d4 {[%clk 0:00:33]} 27. Nh7 {[%clk 0:01:28]}  Rfd8 {[%clk 0:00:32]} 28. Rg5 {[%clk 0:01:28]}  dxe3+ {[%clk 0:00:19]} 29. Kxe3 {[%clk 0:01:29]}  Rxd3+ {[%clk 0:00:16]} 30. Kxd3 {[%clk 0:01:28]}  Nf4+ {[%clk 0:00:17]} 31. Ke3 {[%clk 0:01:26]}  Kxh7 {[%clk 0:00:18]} 32. Rxg7+ {[%clk 0:01:16]}  Kxg7 {[%clk 0:00:17]} 33. Kxf4 {[%clk 0:01:17]}  Rd8 {[%clk 0:00:17]} 34. Ke3 {[%clk 0:01:11]}  Rh8 {[%clk 0:00:12]} 35. Rh1 {[%clk 0:01:00]}  Kf6 {[%clk 0:00:11]} 36. Bxc3+ {[%clk 0:00:58]}  bxc3 {[%clk 0:00:12]} 37. Kd3 {[%clk 0:00:59]}  Kf5 {[%clk 0:00:09]} 38. Kxc3 {[%clk 0:00:59]}  Kg4 {[%clk 0:00:10]} 39. Rg1+ {[%clk 0:00:58]}  Kf3 {[%clk 0:00:06]} 40. Rg7 {[%clk 0:00:58]}  f5 {[%clk 0:00:06]} 41. Rxa7 {[%clk 0:00:56]}  Rxh4 {[%clk 0:00:06]} 42. Re7 {[%clk 0:00:56]}  Re4 {[%clk 0:00:07]} 43. a4 {[%clk 0:00:56]}  Kxf2 {[%clk 0:00:07]} 44. a5 {[%clk 0:00:56]}  Re3+ {[%clk 0:00:07]} 45. Kb2 {[%clk 0:00:57]}  Re2+ {[%clk 0:00:06]} 46. Kb3 {[%clk 0:00:57]}  Re1 {[%clk 0:00:06]} 47. Ka4 {[%clk 0:00:52]}  f4 {[%clk 0:00:05]} 48. a6 {[%clk 0:00:49]}  f3 {[%clk 0:00:06]} 49. Kb5 {[%clk 0:00:49]}  Ra1 {[%clk 0:00:04]} 50. Rxe6 {[%clk 0:00:48]}  Kg2 {[%clk 0:00:05]} 51. Rg6+ {[%clk 0:00:48]}  Kh3 {[%clk 0:00:04]} 52. Rf6 {[%clk 0:00:47]}  Kg2 {[%clk 0:00:04]} 53. Kxc5 {[%clk 0:00:45]}  f2 {[%clk 0:00:05]} 54. Kb6 {[%clk 0:00:45]}  Rb1+ {[%clk 0:00:03]} 55. Kc6 {[%clk 0:00:44]}  Ra1 {[%clk 0:00:03]} 56. Kb7 {[%clk 0:00:45]}  Rb1+ {[%clk 0:00:03]} 57. Ka7 {[%clk 0:00:45]}  Rc1 {[%clk 0:00:03]} 58. c5 {[%clk 0:00:38]}  Rxc5 {[%clk 0:00:03]} 59. Kb6 {[%clk 0:00:38]}  Rc1 {[%clk 0:00:04]} 60. a7 {[%clk 0:00:39]}  Ra1 {[%clk 0:00:04]} 61. Kb7 {[%clk 0:00:39]}  f1=Q {[%clk 0:00:04]} 62. Rxf1 {[%clk 0:00:39]}  Kxf1 {[%clk 0:00:05]} 63. a8=Q {[%clk 0:00:39]}  Rxa8 {[%clk 0:00:05]} 64. Kxa8 {[%clk 0:00:40]} 1/2-1/2


[Site "https://www.chess.com"]

[Event "Titled Tuesday Blitz April 18 Late 2023"]
[White "Domingo Nunez, Ruben"]
[Black "Lazavik, Denis"]
[WhiteFideId "22245570"]
[BlackFideId "13515110"]
[WhiteElo "2404"]
[BlackElo "2560"]
[Result "1/2-1/2"]
[Round "02"]
[TimeControl "180+2"]
[Date "2023.04.18"]
[WhiteClock "0:00:07"]
[BlackClock "0:00:07"]

1. c4 {[%clk 0:02:56]}  Nf6 {[%clk 0:02:59]} 2. g3 {[%clk 0:02:57]}  e6 {[%clk 0:02:57]} 3. Bg2 {[%clk 0:02:56]}  d5 {[%clk 0:02:58]} 4. Nf3 {[%clk 0:02:57]}  dxc4 {[%clk 0:02:58]} 5. Qa4+ {[%clk 0:02:57]}  Nbd7 {[%clk 0:02:58]} 6. Qxc4 {[%clk 0:02:58]}  a6 {[%clk 0:02:58]} 7. a4 {[%clk 0:02:58]}  b5 {[%clk 0:02:52]} 8. Qc2 {[%clk 0:02:58]}  Bb7 {[%clk 0:02:52]} 9. O-O {[%clk 0:02:57]}  c5 {[%clk 0:02:52]} 10. Nc3 {[%clk 0:02:58]}  Qb6 {[%clk 0:02:51]} 11. axb5 {[%clk 0:02:48]}  axb5 {[%clk 0:02:51]} 12. Rxa8+ {[%clk 0:02:48]}  Bxa8 {[%clk 0:02:51]} 13. Qb3 {[%clk 0:02:49]}  Bc6 {[%clk 0:02:47]} 14. d3 {[%clk 0:02:50]}  Be7 {[%clk 0:02:46]} 15. Be3 {[%clk 0:02:49]}  O-O {[%clk 0:02:45]} 16. Rc1 {[%clk 0:02:47]}  Qb7 {[%clk 0:02:38]} 17. Ne1 {[%clk 0:02:44]}  Rb8 {[%clk 0:02:35]} 18. Ra1 {[%clk 0:02:38]}  h5 {[%clk 0:02:31]} 19. Bg5 {[%clk 0:02:28]}  Ne5 {[%clk 0:02:23]} 20. Bf4 {[%clk 0:02:26]}  Nfd7 {[%clk 0:02:17]} 21. Bxc6 {[%clk 0:02:05]}  Qxc6 {[%clk 0:02:18]} 22. Ra5 {[%clk 0:02:05]}  b4 {[%clk 0:02:17]} 23. Ne4 {[%clk 0:01:58]}  c4 {[%clk 0:02:15]} 24. Qd1 {[%clk 0:01:51]}  Rb5 {[%clk 0:01:59]} 25. Ra7 {[%clk 0:01:41]}  cxd3 {[%clk 0:01:48]} 26. exd3 {[%clk 0:01:34]}  Ng6 {[%clk 0:01:45]} 27. Rc7 {[%clk 0:01:23]}  Qd5 {[%clk 0:01:44]} 28. Ng2 {[%clk 0:01:19]}  Ndf8 {[%clk 0:01:37]} 29. Be3 {[%clk 0:00:50]}  Qd8 {[%clk 0:01:34]} 30. Qc2 {[%clk 0:00:49]}  Ra5 {[%clk 0:01:17]} 31. Nf4 {[%clk 0:00:44]}  Ne5 {[%clk 0:01:08]} 32. Rb7 {[%clk 0:00:32]}  Nf3+ {[%clk 0:01:07]} 33. Kf1 {[%clk 0:00:31]}  Ra1+ {[%clk 0:01:07]} 34. Ke2 {[%clk 0:00:31]}  Ng1+ {[%clk 0:00:51]} 35. Kd2 {[%clk 0:00:31]}  e5 {[%clk 0:00:51]} 36. Bb6 {[%clk 0:00:22]}  Qa8 {[%clk 0:00:10]} 37. Rxe7 {[%clk 0:00:22]}  exf4 {[%clk 0:00:10]} 38. Qc4 {[%clk 0:00:18]}  Nf3+ {[%clk 0:00:10]} 39. Ke2 {[%clk 0:00:14]}  Ng1+ {[%clk 0:00:10]} 40. Kd2 {[%clk 0:00:14]}  Ne6 {[%clk 0:00:10]} 41. Rxf7 {[%clk 0:00:08]}  Nf3+ {[%clk 0:00:09]} 42. Ke2 {[%clk 0:00:07]}  Ng1+ {[%clk 0:00:09]} 43. Kd2 {[%clk 0:00:06]}  Nf3+ {[%clk 0:00:10]} 44. Ke2 {[%clk 0:00:07]}  Kxf7 {[%clk 0:00:08]} 45. Kxf3 {[%clk 0:00:07]}  Ra6 {[%clk 0:00:04]} 46. Bd4 {[%clk 0:00:06]}  Qc6 {[%clk 0:00:04]} 47. Qb3 {[%clk 0:00:06]}  Kg6 {[%clk 0:00:04]} 48. Be5 {[%clk 0:00:06]}  fxg3 {[%clk 0:00:04]} 49. hxg3 {[%clk 0:00:06]}  Ra5 {[%clk 0:00:04]} 50. d4 {[%clk 0:00:06]}  Qd5 {[%clk 0:00:05]} 51. Qe3 {[%clk 0:00:06]}  Ra1 {[%clk 0:00:04]} 52. Kg2 {[%clk 0:00:07]}  Ra8 {[%clk 0:00:03]} 53. Kh2 {[%clk 0:00:07]}  Rf8 {[%clk 0:00:03]} 54. f4 {[%clk 0:00:07]}  Rf5 {[%clk 0:00:04]} 55. Qe2 {[%clk 0:00:07]}  Kf7 {[%clk 0:00:04]} 56. g4 {[%clk 0:00:08]}  hxg4 {[%clk 0:00:04]} 57. Qxg4 {[%clk 0:00:09]}  g6 {[%clk 0:00:05]} 58. Ng3 {[%clk 0:00:08]}  Nxd4 {[%clk 0:00:03]} 59. Bxd4 {[%clk 0:00:08]}  Qxd4 {[%clk 0:00:04]} 60. Nxf5 {[%clk 0:00:08]}  Qxb2+ {[%clk 0:00:04]} 61. Kh3 {[%clk 0:00:08]}  gxf5 {[%clk 0:00:03]} 62. Qxf5+ {[%clk 0:00:08]}  Ke7 {[%clk 0:00:04]} 63. Qc5+ {[%clk 0:00:08]}  Kd7 {[%clk 0:00:04]} 64. Qd5+ {[%clk 0:00:09]}  Kc7 {[%clk 0:00:04]} 65. Qc5+ {[%clk 0:00:09]}  Kd7 {[%clk 0:00:05]} 66. Qd5+ {[%clk 0:00:10]}  Ke7 {[%clk 0:00:06]} 67. Qc5+ {[%clk 0:00:10]}  Ke6 {[%clk 0:00:06]} 68. Qc6+ {[%clk 0:00:05]}  Kf5 {[%clk 0:00:06]} 69. Qd5+ {[%clk 0:00:04]}  Kxf4 {[%clk 0:00:07]} 70. Qd6+ {[%clk 0:00:04]}  Ke3 {[%clk 0:00:07]} 71. Qc5+ {[%clk 0:00:05]}  Kd3 {[%clk 0:00:07]} 72. Qd5+ {[%clk 0:00:05]}  Kc3 {[%clk 0:00:07]} 73. Qe5+ {[%clk 0:00:06]}  Kb3 {[%clk 0:00:08]} 74. Qd5+ {[%clk 0:00:06]}  Kc2 {[%clk 0:00:07]} 75. Qg2+ {[%clk 0:00:06]}  Kc3 {[%clk 0:00:07]} 76. Qc6+ {[%clk 0:00:06]}  Kd2 {[%clk 0:00:07]} 77. Qg2+ {[%clk 0:00:06]}  Kc1 {[%clk 0:00:07]} 78. Qf1+ {[%clk 0:00:06]}  Kc2 {[%clk 0:00:07]} 79. Qg2+ {[%clk 0:00:07]}  Kb3 {[%clk 0:00:06]} 80. Qd5+ {[%clk 0:00:07]}  Ka4 {[%clk 0:00:07]} 81. Qa8+ {[%clk 0:00:06]}  Kb3 {[%clk 0:00:07]} 82. Qd5+ {[%clk 0:00:07]} 1/2-1/2


[Site "https://www.chess.com"]